Cogmind - Beta 9.2 @@@ ROGUE MODE // 2019.11.26 @ 14:22:12 Player: GammaGradiation Result: Self-destructed Performance ------------- Evolutions (2) 1000 Regions Visited (3) 600 Robots Destroyed (8) 40 Value Destroyed (209) 209 Prototype IDs (0) 0 Alien Tech Used (0) 0 Bonus (200) 200 TOTAL SCORE: 2049 Bonus ------- Pacifist 200 Cogmind --------- Core Integrity 445/550 Matter 300/300 Energy 250/250 System Corruption 0% Temperature Cool (1) Movement Flying (120) Ox1 Location -8/Materials Parts ------- > --- POWER (1) -------- Ion Engine > --- PROPULSION (4) --- VTOL Module > --- UTILITY (4) ------ Weight Redist. System > --- WEAPON (2) ------- Scythe > --- INVENTORY (4) ---- Small Storage Unit Pulse Rifle Grenade Launcher Peak State ------------ > --- POWER ------------ Ion Engine > --- PROPULSION ------- VTOL Module VTOL Module > --- UTILITY ---------- Weight Redist. System Long-range Sensor Array Advanced Terrain Scanner > --- WEAPON ----------- Scythe > --- INVENTORY -------- Small Storage Unit Pulse Rifle Grenade Launcher [Rating: 17] Favorites ----------- Power Ion Engine Engine Ion Engine Propulsion VTOL Module Flight Unit VTOL Module Utility Weight Redist. System Device Weight Redist. System Weapon Light Assault Rifle Ballistic Gun Light Assault Rifle Slashing Weapon Scythe Build | -11 -10 -9 -8 ------- Run | Scr Mat Mat Mat Slots Evolved 4 | . . 2 2 Power . | . . . . Propulsion 2 | . . 1 1 Utility 2 | . . 1 1 Weapon . | . . . . Parts Attached 15 | 2 . 1 12 Power 2 | . . . 2 Engine 2 | . . . 2 Core . | . . . . Reactor . | . . . . Propulsion 6 | . . . 6 Treads . | . . . . Leg . | . . . . Wheel . | . . . . Hover . | . . . . Flight 6 | . . . 6 Utility 3 | . . . 3 Device 3 | . . . 3 Storage . | . . . . Processor . | . . . . Hackware . | . . . . Protection . | . . . . Artifact . | . . . . Weapon 4 | 2 . 1 1 Energy Gun . | . . . . Energy Cannon . | . . . . Ballistic Gun 3 | 2 . 1 . Ballistic Cannon . | . . . . Launcher . | . . . . Special Weapon . | . . . . Impact Weapon . | . . . . Slashing Weapon 1 | . . . 1 Piercing Weapon . | . . . . Special Melee Weapon . | . . . . Unidentified Prototypes . | . . . . Parts Lost 8 | . . . 8 Power 1 | . . . 1 Propulsion 5 | . . . 5 Utility 2 | . . . 2 Weapon . | . . . . Highest Loss Streak 6 | . . . 6 Average Slot Usage (%) 40 | . 28 22 48 Engine 3 | . . . 5 Flight 10 | . . . 15 Device 11 | . . . 17 Ballistic Gun 10 | . 28 22 4 Slashing Weapon 4 | . . . 7 Naked Turns . | . . . . Heaviest Build 10 | 2 2 2 10 Greatest Support 10 | 3 3 3 10 Greatest Overweight (x) 2 | . . . 2 Average Overweight (x) . | . . . . Largest Inventory Capacity 4 | 4 4 4 4 Average Capacity 4 | 4 4 4 4 Most Carried 4 | 4 4 4 4 Average Carried 3 | 2 3 4 3 Final Capacity 4 | 4 4 4 4 Final Carried 4 | 4 4 4 3 Class Distribution -------------------- 100% | Mutant Dominant Class ---------------- Mutant | -10/Materials Mutant | -9/Materials Mutant | -8/Materials Resources | -11 -10 -9 -8 ----------- Run | Scr Mat Mat Mat Matter Collected 330 | 220 . 10 100 Remotely . | . . . . Salvage Created 247 | . . 34 213 Parts 20 | . . 3 17 Haulers Intercepted . | . . . . Recyclers Shooed . | . . . . Parts Field Recycled . | . . . . Retrieved Matter . | . . . . Parts Self-Destructed . | . . . . Prevented . | . . . . Kills | -11 -10 -9 -8 ------- Run | Scr Mat Mat Mat Combat Hostiles Destroyed 8 | . . 1 7 Melee 7 | . . . 7 Guns 1 | . . 1 . Classes Destroyed 3 | . . 1 2 Swarmer 4 | . . . 4 Grunt 1 | . . 1 . Sentry 3 | . . . 3 Best Kill Streak 7 | . . 1 7 Combat Bots Only 7 | . . 1 7 Max Kills in Single Turn 1 | . . 1 1 Gunslinging . | . . . . Exploded . | . . . . Melee 1 | . . . 1 Uniques/NPCs Destroyed . | . . . . Combat | -11 -10 -9 -8 -------- Run | Scr Mat Mat Mat Damage Taken 604 | . 11 125 468 Core 166 | . . 61 105 Absorbed by Shields . | . . . . Core Remaining (%) 94 | 100 100 84 . Volleys Fired 7 | . 1 6 . Largest 2 | . 2 2 . Hottest 40 | . 40 40 . Shots Fired 14 | . 2 12 . Gun 14 | . 2 12 . Cannon . | . . . . Launcher . | . . . . Special . | . . . . Kinetic 14 | . 2 12 . Thermal . | . . . . Explosive . | . . . . Electromagnetic . | . . . . Robot Hit Streak 2 | . . 2 . Robot Miss Streak 1 | . . 1 . Penetration Max . | . . . . Secondary Targets . | . . . . Shots Hit Robots 20 | . . 7 13 Core Hits 10 | . . 3 7 Critical Hits . | . . . . Critical Kills . | . . . . Critical Parts Destroyed . | . . . . Melee Attacks 15 | . . . 15 Impact . | . . . . Slashing 15 | . . . 15 Piercing . | . . . . Sneak Attacks . | . . . . Combat Hostiles . | . . . . Follow-up Attacks . | . . . . Damage Inflicted 468 | . . 68 400 Guns 54 | . . 54 . Cannons . | . . . . Explosions . | . . . . Melee 400 | . . . 400 Ramming 14 | . . 14 . Kinetic 54 | . . 54 . Thermal . | . . . . Explosive . | . . . . Electromagnetic . | . . . . Impact . | . . . . Slashing 400 | . . . 400 Piercing . | . . . . Highest Corruption . | . . . . Average Corruption . | . . . . Corruption Purged . | . . . . Overload Shots . | . . . . Overflow Damage 31 | . . . 31 Projectiles . | . . . . Explosions . | . . . . Melee 31 | . . . 31 Knockbacks . | . . . . Impact . | . . . . Kinetic . | . . . . Secondary . | . . . . Self-Inflicted Damage 7 | . . 7 . Shots . | . . . . Rammed 3 | . . 3 . Targets Rammed 3 | . . 3 . Kicked . | . . . . Crushed . | . . . . Highest Temperature 1 | . . . 1 Average Temperature 1 | . . . 1 Received Heat Transfer 198 | . 6 48 144 Siege Activations . | . . . . Robots Corrupted . | . . . . Combat Hostiles . | . . . . Parts Fried . | . . . . Impact Corruptions . | . . . . Robots Melted . | . . . . Combat Hostiles . | . . . . Parts Melted . | . . . . Heat Transferred . | . . . . Parts Sabotaged . | . . . . Parts Stolen . | . . . . Parts Stripped . | . . . . Power Chain Reactions . | . . . . Missiles Intercepted . | . . . . Alert | -11 -10 -9 -8 ------- Run | Scr Mat Mat Mat Peak Influence 255 | . 15 65 255 Average Influence 72 | . 4 29 108 Maximum Alert Level 1 | . . . 1 Low Security (%) 90 | 100 100 100 85 Level 1 9 | . . . 14 Level 2 . | . . . . Level 3 . | . . . . Level 4 . | . . . . Level 5 . | . . . . High Security . | . . . . Max Security . | . . . . Squads Dispatched 6 | . 1 2 3 Investigation 1 | . . 1 . Extermination . | . . . . Reinforcement 5 | . 1 1 3 Assault . | . . . . Garrison . | . . . . Intercept . | . . . . Construction Impeded . | . . . . Haulers Reinforced . | . . . . Stealth | -11 -10 -9 -8 --------- Run | Scr Mat Mat Mat Distress Signals 1 | . . . 1 Communications Jammed . | . . . . Distress Signals . | . . . . Times Spotted 39 | . 6 8 25 Peak Tracking Total 14 | . 6 6 14 Tactical Retreats 2 | . . 1 1 Traps | -11 -10 -9 -8 ------- Run | Scr Mat Mat Mat Traps Triggered 2 | . . 2 . Indirectly . | . . . . Trap Hack Attempts . | . . . . Triggered . | . . . . Disarmed . | . . . . Reprogrammed . | . . . . Reused . | . . . . Traps Extracted . | . . . . Installed . | . . . . Triggered . | . . . . Machines | -11 -10 -9 -8 ---------- Run | Scr Mat Mat Mat Machines Disabled . | . . . . Max in Single Turn . | . . . . Machines Sabotaged . | . . . . Garrisons Compromised . | . . . . Overloaded Fab Kills . | . . . . Fab Network Shutdowns . | . . . . Hacking | -11 -10 -9 -8 --------- Run | Scr Mat Mat Mat Machines Accessed 6 | . . 1 5 Terminals 6 | . . 1 5 Fabricators . | . . . . Repair Stations . | . . . . Recycling Units . | . . . . Scanalyzers . | . . . . Garrison Access . | . . . . Total Hacks 18 | . . 2 16 Successful 9 | . . . 9 Failed 9 | . . 2 7 Catastrophic 2 | . . 1 1 Database Lockouts . | . . . . Manual 7 | . . . 7 Terminals 18 | . . 2 16 Fabricators . | . . . . Repair Stations . | . . . . Recycling Units . | . . . . Scanalyzers . | . . . . Garrison Access . | . . . . Terminal Hacks 6 | . . . 6 Branch Access Points 1 | . . . 1 Emergency Access Points 2 | . . . 2 Zone Layout 3 | . . . 3 Fabricator Hacks . | . . . . Repair Station Hacks . | . . . . Recycling Unit Hacks . | . . . . Scanalyzer . | . . . . Garrison Access Hacks . | . . . . Unauthorized Hacks 9 | . . . 9 Terminals 3 | . . . 3 Botnet 2 | . . . 2 Operators 1 | . . . 1 Fabricators . | . . . . Repair Stations . | . . . . Recycling Units . | . . . . Scanalyzers . | . . . . Garrison Access . | . . . . Data Cores Recovered . | . . . . Used . | . . . . Hacking Detections 5 | . . 1 4 Full Trace Events . | . . . . Feedback Events . | . . . . Feedback Blocked . | . . . . Robot Schematics Acquired . | . . . . Robots Built . | . . . . Matter . | . . . . Time . | . . . . Total Robot Build Rating . | . . . . Part Schematics Acquired . | . . . . Parts Built . | . . . . Matter . | . . . . Time . | . . . . Total Part Build Rating . | . . . . Parts Repaired . | . . . . Time . | . . . . Parts Recycled . | . . . . Recycled Matter . | . . . . Retrieved Matter . | . . . . Retrieved Components . | . . . . Parts Scanalyzed . | . . . . Part Schematics Acquired . | . . . . Parts Damaged . | . . . . Bothacking | -11 -10 -9 -8 ------------ Run | Scr Mat Mat Mat Used RIF Installer . | . . . . Robots Hacked . | . . . . Non-combat . | . . . . Combat . | . . . . Robot Hacks Applied . | . . . . Relay Couplers Released . | . . . . Robots Rewired . | . . . . Allies Hacked . | . . . . Hacks Repelled . | . . . . Allies | -11 -10 -9 -8 -------- Run | Scr Mat Mat Mat Total Allies . | . . . . Largest Group . | . . . . Highest-Rated Group . | . . . . Highest-Rated Ally . | . . . . Total Orders . | . . . . Ally Attacks . | . . . . Total Damage . | . . . . Kills . | . . . . Allies Corrupted . | . . . . Allies Melted . | . . . . Intel | -11 -10 -9 -8 ------- Run | Scr Mat Mat Mat Robot Analysis Total . | . . . . Derelict Logs Recovered . | . . . . Drone Launches . | . . . . Drone Recoveries . | . . . . Exploration | -11 -10 -9 -8 ------------- Run | Scr Mat Mat Mat Turns Passed 438 | 31 64 73 270 Spaces Moved 599 | 48 118 101 332 Core 368 | 48 118 101 101 Treads . | . . . . Legs . | . . . . Wheels . | . . . . Hover . | . . . . Flight 231 | . . . 231 Fastest Speed 37 | 50 50 50 37 Average Speed 50 | 50 50 50 50 Slowest Speed 150 | 50 50 50 150 Overloaded Moves . | . . . . Propulsion Burnouts . | . . . . Robots Hopped 11 | . . . 11 Cave-ins Triggered . | . . . . Exploration Rate (%) 21 | 4 27 16 38 Regions Visited 3 Branch Regions . Pre-discovered Areas . | . . . . Known Exits Taken . | . . . . Unknown Exits Taken 3 | 1 1 1 . Scrap Searched . | . . . . Spaces Dug . | . . . . Terrain Destroyed . | . . . . Melee . | . . . . Projectile . | . . . . AOE . | . . . . Actions | -11 -10 -9 -8 --------- Run | Scr Mat Mat Mat Total 683 | 53 121 112 397 Wait 47 | . 1 2 44 Move 577 | 47 117 100 313 Hop 8 | . . . 8 Pick Up 7 | 4 1 . 2 Fast Attach 13 | 2 . 1 10 Attach 2 | . . . 2 Detach . | . . . . Swap . | . . . . Drop 4 | . 1 . 3 Fire 7 | . 1 6 . Melee 15 | . . . 15 Ram 3 | . . 3 . Kick . | . . . . Crush . | . . . . Escape Stasis . | . . . . Rewire . | . . . . Trap . | . . . . Miscellaneous . | . . . . Route ------- -11/Scrapyard -10/Materials -9/Materials -8/Materials History --------- Turn | Location | Event 4 | -11/Scrapyard | Discovered new exit (range 15) 32 | -11/Scrapyard | Entered Materials 87 | -10/Materials | Discovered new exit (range 16) 96 | -10/Materials | Entered another Materials area 96 | -9/Materials | Evolved 2 slots: Propulsion x1, Utility x1 166 | -9/Materials | Discovered new exit (range 3) 169 | -9/Materials | Entered another Materials area 169 | -8/Materials | Evolved 2 slots: Propulsion x1, Utility x1 318 | -8/Materials | Build established: Mutant 425 | -8/Materials | Destroyed 7 combat bots 426 | -8/Materials | Lost 6 parts (1p4n1u) 439 | -8/Materials | Self-destructed Last Messages --------------- 00413_ Connecting with Terminal... >>Access(Emergency) Found 1 emergency access door: (16,3) Map updated. 00413_ Connecting with Terminal... >>Trojan(Botnet) Trojan loaded successfully. Testing... Terminal linked with 1 system. Awaiting botnet instructions. 00414_ K-01 Serf collects debris. 00415_ Connecting with Terminal... >>Layout(Zone) Retrieving Zone 6H layout... Downloaded map data. 00415_ Connecting with Terminal... 00422_ K-01 Serf collects debris. 00429_ Adv. Terrain Scanner destroyed. 00438_ Flight Unit destroyed. Map ----- +----------------------------------------------------+ | | | | | | | | | ????#####################????????????????????????? | | ????# ! # ] #????????????????????????? | | ???## """ # #????????????????????????? | | ???# [! "T" + "T" #????????????????????????? | | ????#[! # """ #????????????????????????? | | ????#####+#########+#######??????????????????????? | | ??????# """ #??????????????????????? | | ??????# "T" ###########????????????? | | ??????###+##### # #????????????? | | ??????# o ##o! # #????????????? | | ??????# ! ##!= # #????????????? | | ??????# ""##!!= # """"""" #????????????? | | ????#?#]][ T"##%%=! + """"""" #????????????? | | ??????#][[ ""##+###+##Y # """"""" #????????????? | | ??????#][ ## **! ## ## """"""" #????????????? | | ??????### #####[="T" ## ## """"""" #????????????? | | ????????###??##!%%/ ## ############????????????? | | ?????????????# == ## ## #??????????????? | | ?????????????## ##Yg## #??????????????? | | ??????????????####+### g # #??????????????? | | ??############### g g # #??????????????? | | ??# # u @ggg #??????????????? | | ??# # ### # """ #??????????????? | | ??# #* #?###### """"" #??????????????? | | ??# =+ #??????# """"" #??????????????? | | ??# %#* #??????# """"" #??????????????? | | ??# ] + #??????# """ #??????????????? | | ??###############/####????# #??????????????? | | ???????????# #????#########??????????????? | | ???????????# #???????????????????????????? | | ???????????#[ """"" #?####??????????????????????? | | ???????????# """"" #? #??????????????????????? | | ???????????# ! """"" +? #??????????????????????? | | ???????????# #? #??????????????????????? | | ???????????# ! #? #??????????????????????? | | ???????????# ## #??????????????????????? | | ???????????########+### #??????????????????????? | | ???????????????# ## ##?????????????????????? | | ???????????????# # ###+######????????????? | | ???????????????# # ???????????? | | ???????????????# + ???????????? | | ???????????????# """ # ???????????? | | ???????????????# """ # ##### #???????????????? | | ????????######## """ ## ##?????????????????????? | | ????????? # ## #??????????????????????? | | ?????????? #""" ## #??????????????????????? | +----------------------------------------------------+ Best States ------------- Heat Dissipation 31 Energy Generation 10 Energy Capacity 250 Matter Stores 300 Matter Capacity 300 Sight Range 16 Robot Scan Range 20 Terrain Scan Range 20 Terrain Scan Density 10 Evasion (%) 62 Item Schematics ----------------- None Robot Schematics ------------------ None Fabricated ------------ Nothing Alien Tech Used ----------------- None Achievements -------------- None Challenges ------------ None Game ------ Seed HeavyProtonAutocannon Manual? 0 Play Time 00:14:41 Cumulative 42.1 hours Start 2019.11.26 @ 14:08:15 End 2019.11.26 @ 14:22:12 Sessions 1 Manual Loads 0 Difficulty Rogue Special Mode None Game No. 32 Rogue 32 Adventurer 0 Explorer 0 Win Type - Total 0 Types 0/0/0/0/0/0/0 Lore% 43 Gallery% 41 Achievement% 34 Wizard Run 0 Options --------- ASCII 1 Keyboard 1 Movement Numpad Keybinds 0 Fullscreen 1 Font 18/SmallcapsGlow Map View 76x50 Tactical HUD 1 Map Filters NONE Filters NONE Steam 0 RUN: 43b8253d-247b-4843-a0bf-3a20849a97da